[Event "XVI Open Internacional Villa de Ibi"]
[Site "Ibi, Spain"]
[Date "2018.09.09"]
[Round "6.6"]
[White "Sos Andreu, Eric"]
[Black "Garcia Amoros, Pablo"]
[Result "1-0"]
[TimeControl "15' + 2'' por jugada"]
[WhiteElo "2332"]
[BlackElo "2097"]

1. e4 {[%clk 00:15:02]} {[%emt 00:00:33]} c5 {[%clk 00:15:03]} 2. Nc3 {[%clk
00:14:57]} a6 {[%clk 00:15:03]} 3. Nge2 {[%clk 00:14:51]} d6 {[%clk 00:15:02]}
4. g3 {[%clk 00:14:51]} e5 {[%clk 00:14:57]} {[%emt 00:00:04]} 5. Bg2 {[%clk
00:14:49]} {[%emt 00:00:04]} Nf6 {[%clk 00:14:52]} {[%emt 00:00:05]} 6. O-O
{[%clk 00:14:48]} {[%emt 00:00:03]} g6 {[%clk 00:14:46]} {[%emt 00:00:10]} 7.
d3 {[%clk 00:14:44]} {[%emt 00:00:04]} Bg7 {[%clk 00:14:46]} {[%emt 00:00:03]}
8. h3 {[%clk 00:14:42]} {[%emt 00:00:03]} O-O {[%clk 00:14:43]} {[%emt
00:00:10]} 9. f4 {[%clk 00:14:40]} Nc6 {[%clk 00:11:28]} {[%emt 00:03:14]} 10.
f5 {[%clk 00:14:32]} {[%emt 00:00:10]} h6 {[%clk 00:11:19]} {[%emt 00:00:37]}
11. g4 {[%clk 00:14:14]} {[%emt 00:00:04]} g5 {[%clk 00:10:55]} {[%emt
00:00:19]} 12. Ng3 {[%clk 00:14:09]} {[%emt 00:00:07]} Ne7 {[%clk 00:10:28]}
{[%emt 00:00:53]} 13. Be3 {[%clk 00:13:56]} {[%emt 00:00:06]} Ne8 {[%clk
00:10:01]} {[%emt 00:00:12]} 14. Qd2 {[%clk 00:13:32]} {[%emt 00:00:25]} f6
{[%clk 00:10:00]} {[%emt 00:00:17]} 15. a3 {[%clk 00:13:00]} {[%emt 00:00:50]}
Bd7 {[%clk 00:09:58]} 16. h4 {[%clk 00:12:37]} {[%emt 00:00:14]} Nc7 {[%clk
00:09:48]} {[%emt 00:00:06]} 17. Kf2 {[%clk 00:11:51]} {[%emt 00:00:39]} Nc6
{[%clk 00:09:44]} {[%emt 00:00:10]} 18. Rh1 {[%clk 00:11:40]} {[%emt 00:00:11]}
Be8 {[%clk 00:09:43]} {[%emt 00:00:04]} 19. Rab1 {[%clk 00:11:25]} {[%emt
00:00:14]} Bf7 {[%clk 00:09:43]} {[%emt 00:00:07]} 20. b4 {[%clk 00:11:17]}
{[%emt 00:00:05]} Nd4 {[%clk 00:09:35]} {[%emt 00:00:19]} 21. Nd5 {[%clk
00:10:39]} {[%emt 00:00:32]} Nxd5 {[%clk 00:08:58]} {[%emt 00:00:38]} 22. exd5
{[%clk 00:10:38]} {[%emt 00:00:35]} Rc8 {[%clk 00:07:23]} {[%emt 00:01:07]} 23.
c3 {[%clk 00:10:29]} {[%emt 00:00:13]} Nb5 {[%clk 00:07:21]} {[%emt 00:00:04]}
24. a4 {[%clk 00:10:16]} {[%emt 00:00:11]} Nc7 {[%clk 00:07:06]} {[%emt
00:00:50]} 25. c4 {[%clk 00:10:14]} b6 {[%clk 00:05:59]} {[%emt 00:00:43]} 26.
Ne4 {[%clk 00:10:04]} {[%emt 00:00:11]} Be8 {[%clk 00:05:54]} {[%emt 00:00:08]}
27. a5 {[%clk 00:09:54]} {[%emt 00:00:09]} bxa5 {[%clk 00:05:41]} {[%emt
00:00:38]} 28. bxc5 {[%clk 00:09:54]} {[%emt 00:00:03]} dxc5 {[%clk 00:05:19]}
{[%emt 00:00:08]} 29. Bxc5 {[%clk 00:09:53]} {[%emt 00:00:04]} Rf7 {[%clk
00:04:55]} {[%emt 00:00:16]} 30. Qxa5 {[%clk 00:09:02]} {[%emt 00:00:54]} 1-0

[Event "XVI Open Internacional Villa de Ibi"]
[Site "Ibi, Spain"]
[Date "2018.09.09"]
[Round "6.7"]
[White "Giaccio, Alfredo"]
[Black "Bendayan Claros, Aaron"]
[Result "1-0"]
[TimeControl "15' + 2'' por jugada"]
[WhiteElo "2442"]
[BlackElo "2171"]

1. e4 {[%clk 00:15:01]} c6 {[%clk 00:15:02]} 2. d4 {[%clk 00:14:57]} d5 {[%clk
00:15:03]} 3. e5 {[%clk 00:14:46]} {[%emt 00:00:13]} Bf5 {[%clk 00:15:02]} 4.
h4 {[%clk 00:14:46]} h5 {[%clk 00:15:00]} {[%emt 00:00:04]} 5. Bd3 {[%clk
00:14:40]} {[%emt 00:00:07]} Bxd3 {[%clk 00:14:59]} {[%emt 00:00:04]} 6. Qxd3
{[%clk 00:14:40]} e6 {[%clk 00:14:59]} {[%emt 00:00:04]} 7. Bg5 {[%clk
00:14:41]} Qa5+ {[%clk 00:14:57]} {[%emt 00:00:04]} 8. Nd2 {[%clk 00:14:40]}
{[%emt 00:00:03]} Qa6 {[%clk 00:14:55]} {[%emt 00:00:03]} 9. c4 {[%clk
00:14:41]} {[%emt 00:00:07]} Ne7 {[%clk 00:14:43]} {[%emt 00:00:06]} 10. Ngf3
{[%clk 00:14:37]} {[%emt 00:00:05]} Nd7 {[%clk 00:14:36]} {[%emt 00:00:15]} 11.
O-O {[%clk 00:14:34]} {[%emt 00:00:04]} Nf5 {[%clk 00:13:12]} {[%emt 00:01:22]}
12. b3 {[%clk 00:14:21]} {[%emt 00:00:18]} f6 {[%clk 00:11:58]} {[%emt
00:01:13]} 13. exf6 {[%clk 00:13:55]} {[%emt 00:00:27]} gxf6 {[%clk 00:11:58]}
{[%emt 00:00:21]} 14. Rfe1 {[%clk 00:13:36]} {[%emt 00:00:08]} Kf7 {[%clk
00:07:03]} {[%emt 00:04:51]} 15. Rxe6 {[%clk 00:12:07]} {[%emt 00:02:09]} Ng7
{[%clk 00:07:01]} 16. Rxf6+ {[%clk 00:12:01]} Nxf6 {[%clk 00:06:27]} {[%emt
00:00:09]} 17. Ne5+ {[%clk 00:12:01]} {[%emt 00:00:37]} Kg8 {[%clk 00:06:21]}
18. Bxf6 {[%clk 00:11:12]} {[%emt 00:00:27]} c5 {[%clk 00:06:21]} {[%emt
00:00:03]} 19. Qg6 {[%clk 00:08:35]} {[%emt 00:02:41]} cxd4 {[%clk 00:03:38]}
{[%emt 00:02:47]} 20. Qf7+ {[%clk 00:07:57]} {[%emt 00:00:33]} Kh7 {[%clk
00:03:38]} {[%emt 00:00:31]} 21. Ndf3 {[%clk 00:07:57]} 1-0

[Event "XVI Open Internacional Villa de Ibi"]
[Site "Ibi, Spain"]
[Date "2018.09.09"]
[Round "7.1"]
[White "Cruz Lledo, Pablo"]
[Black "Granero Roca, Antonio"]
[Result "0-1"]
[TimeControl "15' + 2'' por jugada"]
[WhiteElo "2436"]
[BlackElo "2370"]

1. d4 {[%clk 00:15:02]} {[%emt 00:00:04]} Nf6 {[%clk 00:15:03]} {[%emt
00:00:04]} 2. c4 {[%clk 00:15:02]} c5 {[%clk 00:15:04]} 3. e3 {[%clk 00:14:55]}
{[%emt 00:00:11]} g6 {[%clk 00:15:03]} {[%emt 00:00:03]} 4. Nf3 {[%clk
00:14:51]} {[%emt 00:00:04]} Bg7 {[%clk 00:15:03]} 5. Be2 {[%clk 00:14:50]}
{[%emt 00:00:10]} O-O {[%clk 00:15:03]} 6. O-O {[%clk 00:14:49]} cxd4 {[%clk
00:15:03]} {[%emt 00:00:15]} 7. Nxd4 {[%clk 00:14:43]} {[%emt 00:00:04]} d6
{[%clk 00:15:02]} 8. Nc3 {[%clk 00:14:42]} Nc6 {[%clk 00:15:03]} 9. b3 {[%clk
00:14:38]} {[%emt 00:00:03]} Bd7 {[%clk 00:15:01]} {[%emt 00:00:05]} 10. Bb2
{[%clk 00:14:38]} {[%emt 00:00:14]} a6 {[%clk 00:15:02]} 11. Rc1 {[%clk
00:14:39]} {[%emt 00:00:03]} Qa5 {[%clk 00:14:59]} 12. Bf3 {[%clk 00:14:30]}
{[%emt 00:00:04]} Rac8 {[%clk 00:14:47]} {[%emt 00:00:10]} 13. Qe2 {[%clk
00:14:24]} {[%emt 00:00:12]} Rfe8 {[%clk 00:14:33]} {[%emt 00:00:12]} 14. Rfd1
{[%clk 00:14:23]} {[%emt 00:00:11]} Nxd4 {[%clk 00:14:31]} {[%emt 00:00:03]} 15.
exd4 {[%clk 00:14:16]} {[%emt 00:00:05]} b5 {[%clk 00:14:30]} {[%emt 00:00:03]}
16. a3 {[%clk 00:13:33]} {[%emt 00:00:42]} bxc4 {[%clk 00:14:30]} {[%emt
00:00:33]} 17. bxc4 {[%clk 00:13:33]} Be6 {[%clk 00:14:16]} {[%emt 00:00:04]}
18. Na2 {[%clk 00:12:58]} {[%emt 00:00:19]} Qa4 {[%clk 00:13:46]} {[%emt
00:00:57]} 19. d5 {[%clk 00:12:52]} {[%emt 00:00:04]} Bf5 {[%clk 00:12:55]}
{[%emt 00:00:33]} 20. Nb4 {[%clk 00:12:52]} {[%emt 00:00:23]} e5 {[%clk
00:12:24]} {[%emt 00:00:12]} 21. dxe6 {[%clk 00:12:33]} {[%emt 00:00:21]} Rxe6
{[%clk 00:12:21]} {[%emt 00:00:12]} 22. Qd2 {[%clk 00:12:33]} Be4 {[%clk
00:12:04]} {[%emt 00:00:18]} 23. Bxf6 {[%clk 00:11:41]} {[%emt 00:00:49]} Bxf3
{[%clk 00:11:58]} {[%emt 00:00:08]} 24. Bxg7 {[%clk 00:11:34]} {[%emt
00:00:34]} Bxd1 {[%clk 00:11:35]} {[%emt 00:00:04]} 25. Bb2 {[%clk 00:11:16]}
{[%emt 00:00:24]} Bb3 {[%clk 00:10:50]} {[%emt 00:00:45]} 26. g4 {[%clk
00:09:36]} {[%emt 00:01:36]} a5 {[%clk 00:10:30]} {[%emt 00:00:36]} 27. Qd4
{[%clk 00:07:29]} {[%emt 00:01:58]} f6 {[%clk 00:09:50]} {[%emt 00:00:40]} 28.
Qd5 {[%clk 00:07:26]} {[%emt 00:00:23]} Qe8 {[%clk 00:09:30]} {[%emt 00:00:09]}
29. Nd3 {[%clk 00:07:17]} {[%emt 00:00:11]} Qf7 {[%clk 00:08:54]} {[%emt
00:00:33]} 30. Nf4 {[%clk 00:06:25]} {[%emt 00:00:54]} Rxc4 {[%clk 00:08:33]}
{[%emt 00:00:26]} 31. Rxc4 {[%clk 00:05:36]} {[%emt 00:00:49]} Re1+ {[%clk
00:08:10]} {[%emt 00:01:03]} 32. Kg2 {[%clk 00:05:30]} Qxd5+ {[%clk 00:08:09]}
33. Nxd5 {[%clk 00:05:24]} Bxc4 {[%clk 00:08:10]} 34. Nxf6+ {[%clk 00:05:24]}
Kf7 {[%clk 00:08:02]} 35. Nxh7 {[%clk 00:05:21]} {[%emt 00:00:37]} Rb1 {[%clk
00:06:53]} {[%emt 00:00:42]} 36. Bc3 {[%clk 00:05:17]} {[%emt 00:00:03]} a4
{[%clk 00:06:51]} 37. Ng5+ {[%clk 00:05:16]} {[%emt 00:00:04]} Kg8 {[%clk
00:06:37]} {[%emt 00:00:19]} 38. Bd2 {[%clk 00:03:51]} {[%emt 00:01:38]} Rb3
{[%clk 00:06:29]} 39. Bc1 {[%clk 00:03:50]} Bd5+ {[%clk 00:06:21]} {[%emt
00:00:15]} 40. f3 {[%clk 00:03:49]} Rc3 {[%clk 00:06:21]} 41. Bf4 {[%clk
00:03:50]} Rxa3 {[%clk 00:06:10]} {[%emt 00:00:26]} 42. Bxd6 {[%clk 00:03:50]}
Rd3 {[%clk 00:06:05]} 43. Be5 {[%clk 00:03:48]} a3 {[%clk 00:06:01]} {[%emt
00:00:06]} 44. h4 {[%clk 00:03:49]} {[%emt 00:00:05]} a2 {[%clk 00:06:02]} 45.
h5 {[%clk 00:03:50]} gxh5 {[%clk 00:05:31]} {[%emt 00:00:27]} 46. gxh5 {[%clk
00:03:50]} {[%emt 00:00:25]} Bf7 {[%clk 00:05:23]} 47. h6 {[%clk 00:02:53]}
{[%emt 00:00:56]} Bg6 {[%clk 00:05:23]} 48. Nh3 {[%clk 00:02:11]} {[%emt
00:00:53]} Rd5 {[%clk 00:05:07]} {[%emt 00:00:05]} 49. Bf6 {[%clk 00:02:01]}
{[%emt 00:00:11]} Kh7 {[%clk 00:04:53]} {[%emt 00:00:14]} 50. Bg7 {[%clk
00:01:59]} {[%emt 00:00:34]} Kg8 {[%clk 00:04:06]} {[%emt 00:00:23]} 51. Nf4
{[%clk 00:01:27]} {[%emt 00:00:35]} Rd2+ {[%clk 00:04:07]} 52. Kg3 {[%clk
00:01:25]} {[%emt 00:00:09]} Bf7 {[%clk 00:03:51]} {[%emt 00:00:21]} 53. Nh3
{[%clk 00:01:09]} {[%emt 00:00:08]} Rd1 {[%clk 00:03:45]} {[%emt 00:00:07]} 54.
Ng5 {[%clk 00:01:10]} {[%emt 00:00:03]} Bg6 {[%clk 00:03:34]} {[%emt 00:00:12]}
55. Kf4 {[%clk 00:00:35]} {[%emt 00:00:56]} Rh1 {[%clk 00:03:21]} {[%emt
00:00:07]} 56. Bc3 {[%clk 00:00:09]} {[%emt 00:00:17]} Rxh6 {[%clk 00:03:14]}
{[%emt 00:00:05]} 57. Ke5 {[%clk 00:00:10]} Rh1 {[%clk 00:03:08]} {[%emt
00:00:12]} 58. Kf6 {[%clk 00:00:10]} {[%emt 00:00:08]} Bd3 {[%clk 00:03:01]}
{[%emt 00:00:04]} 59. f4 {[%clk 00:00:04]} {[%emt 00:00:14]} a1=Q {[%clk
00:02:52]} {[%emt 00:00:04]} 60. Bxa1 {[%clk 00:00:04]} {[%emt 00:00:04]} Rxa1
{[%clk 00:02:53]} 61. Ne6 {[%clk 00:00:04]} {[%emt 00:00:04]} Ra5 {[%clk
00:02:42]} {[%emt 00:00:11]} 62. Nd4 {[%clk 00:00:04]} {[%emt 00:00:20]} Rd5
{[%clk 00:02:37]} {[%emt 00:00:22]} 63. Nc6 {[%clk 00:00:03]} Rd6+ {[%clk
00:02:38]} 0-1

[Event "XVI Open Internacional Villa de Ibi"]
[Site "Ibi, Spain"]
[Date "2018.09.09"]
[Round "7.2"]
[White "Plaskett, H James"]
[Black "Garcia, Jhoel"]
[Result "1-0"]
[TimeControl "15' + 2'' por jugada"]
[WhiteElo "2450"]
[BlackElo "2250"]

1. d4 {[%clk 00:15:03]} d5 {[%clk 00:15:01]} {[%emt 00:00:11]} 2. c4 {[%clk
00:15:03]} c6 {[%clk 00:15:01]} 3. Nf3 {[%clk 00:15:00]} {[%emt 00:00:06]} Nf6
{[%clk 00:14:59]} {[%emt 00:00:05]} 4. Nc3 {[%clk 00:14:59]} e6 {[%clk
00:14:59]} {[%emt 00:00:05]} 5. Bg5 {[%clk 00:14:55]} {[%emt 00:00:04]} dxc4
{[%clk 00:14:50]} {[%emt 00:00:10]} 6. e4 {[%clk 00:14:42]} {[%emt 00:00:15]}
b5 {[%clk 00:14:50]} {[%emt 00:00:08]} 7. e5 {[%clk 00:14:41]} h6 {[%clk
00:14:44]} {[%emt 00:00:13]} 8. Bh4 {[%clk 00:14:41]} g5 {[%clk 00:14:43]} 9.
Nxg5 {[%clk 00:14:42]} {[%emt 00:00:13]} hxg5 {[%clk 00:14:44]} 10. Bxg5 {[%clk
00:14:43]} Nbd7 {[%clk 00:14:44]} 11. exf6 {[%clk 00:14:40]} {[%emt 00:00:04]}
Qb6 {[%clk 00:14:23]} {[%emt 00:00:17]} 12. g3 {[%clk 00:14:29]} {[%emt
00:00:09]} Bb7 {[%clk 00:14:05]} {[%emt 00:00:20]} 13. Bg2 {[%clk 00:14:28]}
{[%emt 00:00:05]} c5 {[%clk 00:13:53]} {[%emt 00:00:12]} 14. d5 {[%clk
00:14:22]} {[%emt 00:00:07]} O-O-O {[%clk 00:13:47]} {[%emt 00:00:09]} 15. O-O
{[%clk 00:14:19]} {[%emt 00:00:05]} b4 {[%clk 00:13:14]} {[%emt 00:00:37]} 16.
Na4 {[%clk 00:13:47]} {[%emt 00:00:34]} Qa6 {[%clk 00:12:43]} {[%emt 00:00:43]}
17. a3 {[%clk 00:12:33]} {[%emt 00:01:03]} Bxd5 {[%clk 00:12:29]} {[%emt
00:00:17]} 18. Bxd5 {[%clk 00:12:11]} {[%emt 00:00:26]} Ne5 {[%clk 00:12:04]}
{[%emt 00:00:26]} 19. axb4 {[%clk 00:08:45]} {[%emt 00:03:27]} Rxd5 {[%clk
00:11:34]} {[%emt 00:00:36]} 20. Qe2 {[%clk 00:08:46]} cxb4 {[%clk 00:10:34]}
{[%emt 00:01:04]} 21. Nc3 {[%clk 00:07:54]} {[%emt 00:00:57]} Qc6 {[%clk
00:08:47]} {[%emt 00:01:41]} 22. Nxd5 {[%clk 00:07:52]} {[%emt 00:00:08]} Qxd5
{[%clk 00:08:47]} 23. f3 {[%clk 00:07:52]} Bc5+ {[%clk 00:08:19]} {[%emt
00:00:31]} 24. Be3 {[%clk 00:07:42]} {[%emt 00:00:12]} Nd3 {[%clk 00:07:46]}
{[%emt 00:00:36]} 25. Bxc5 {[%clk 00:06:59]} {[%emt 00:00:44]} Qxc5+ {[%clk
00:07:46]} {[%emt 00:00:05]} 26. Kh1 {[%clk 00:06:55]} {[%emt 00:00:04]} Kb7
{[%clk 00:06:03]} {[%emt 00:01:43]} 27. b3 {[%clk 00:06:15]} {[%emt 00:00:42]}
Rd8 {[%clk 00:05:19]} {[%emt 00:00:48]} 28. bxc4 {[%clk 00:04:34]} {[%emt
00:01:42]} Qxc4 {[%clk 00:03:10]} {[%emt 00:02:14]} 29. Rad1 {[%clk 00:02:56]}
{[%emt 00:01:36]} Rd5 {[%clk 00:02:28]} {[%emt 00:00:44]} 30. Rd2 {[%clk
00:02:25]} {[%emt 00:00:36]} b3 {[%clk 00:00:42]} {[%emt 00:01:46]} 31. Rfd1
{[%clk 00:02:17]} {[%emt 00:00:09]} Ne5 {[%clk 00:00:30]} {[%emt 00:00:14]} 32.
Qxc4 {[%clk 00:02:16]} {[%emt 00:00:05]} Nxc4 {[%clk 00:00:31]} 33. Rxd5 {[%emt
00:00:05]} exd5 34. h4 {[%clk 00:02:18]} a5 {[%clk 00:00:24]} {[%emt 00:00:08]}
35. h5 {[%clk 00:02:15]} {[%emt 00:00:05]} Ne5 {[%clk 00:00:21]} {[%emt
00:00:08]} 36. Rxd5 {[%clk 00:02:15]} {[%emt 00:00:05]} a4 {[%clk 00:00:12]}
{[%emt 00:00:05]} 37. h6 {[%clk 00:01:52]} {[%emt 00:00:25]} Ng6 {[%clk
00:00:09]} {[%emt 00:00:26]} 38. Ra5 {[%clk 00:01:49]} Kb6 {[%clk 00:00:07]} 39.
Rxa4 {[%clk 00:01:50]} Kb5 {[%clk 00:00:08]} 40. Ra8 {[%clk 00:01:44]} Kc4
{[%clk 00:00:10]} 41. h7 {[%clk 00:01:42]} {[%emt 00:00:04]} b2 {[%clk
00:00:11]} {[%emt 00:00:09]} 42. Rb8 {[%clk 00:01:40]} Kc3 {[%clk 00:00:12]} 43.
Kg2 {[%clk 00:01:26]} {[%emt 00:00:11]} Kc2 {[%clk 00:00:12]} 44. Kh3 {[%clk
00:01:15]} {[%emt 00:00:14]} b1=Q {[%clk 00:00:11]} {[%emt 00:00:06]} 45. Rxb1
{[%clk 00:01:16]} Kxb1 {[%clk 00:00:13]} 46. Kg4 {[%clk 00:01:17]} {[%emt
00:00:05]} Kc2 {[%clk 00:00:14]} 47. Kg5 {[%clk 00:01:18]} Kd3 {[%clk
00:00:13]} 48. Kh6 {[%clk 00:01:13]} {[%emt 00:00:27]} Ke3 {[%clk 00:00:10]} 49.
f4 {[%clk 00:01:09]} Ke4 {[%clk 00:00:09]} 50. Kg7 {[%clk 00:01:02]} {[%emt
00:00:05]} Kf5 {[%clk 00:00:08]} 51. Kxf7 {[%clk 00:01:02]} {[%emt 00:00:05]}
Nh8+ {[%clk 00:00:07]} {[%emt 00:00:04]} 52. Kg7 {[%clk 00:01:03]} Ke6 {[%clk
00:00:08]} 53. g4 {[%clk 00:00:59]} {[%emt 00:00:05]} 1-0

[Event "XVI Open Internacional Villa de Ibi"]
[Site "Ibi, Spain"]
[Date "2018.09.09"]
[Round "7.3"]
[White "Sos Andreu, Eric"]
[Black "Serarols Mabras, Bernat"]
[Result "1/2-1/2"]
[TimeControl "15' + 2'' por jugada"]
[WhiteElo "2332"]
[BlackElo "2367"]

1. d4 {[%clk 00:15:01]} {[%emt 00:00:36]} Nf6 {[%clk 00:15:02]} 2. c4 {[%clk
00:15:01]} e6 {[%clk 00:15:02]} 3. g3 {[%clk 00:14:59]} {[%emt 00:00:03]} d5
{[%clk 00:15:02]} 4. Nf3 {[%clk 00:14:59]} Bb4+ {[%clk 00:15:03]} 5. Bd2 {[%clk
00:14:59]} Bd6 {[%clk 00:15:03]} 6. Bg2 {[%clk 00:14:57]} c6 {[%clk 00:14:45]}
{[%emt 00:00:08]} 7. O-O {[%clk 00:14:52]} {[%emt 00:00:16]} O-O {[%clk
00:14:44]} 8. Nc3 {[%clk 00:14:51]} {[%emt 00:00:24]} Nbd7 {[%clk 00:14:40]} 9.
b3 {[%clk 00:14:14]} {[%emt 00:00:17]} Re8 {[%clk 00:14:40]} {[%emt 00:00:14]}
10. Qc2 {[%clk 00:14:13]} dxc4 {[%clk 00:14:35]} 11. bxc4 {[%clk 00:14:13]} e5
{[%clk 00:14:35]} {[%emt 00:00:10]} 12. e3 {[%clk 00:14:07]} {[%emt 00:00:18]}
Bc7 {[%clk 00:14:21]} {[%emt 00:00:03]} 13. Rfd1 {[%clk 00:13:54]} {[%emt
00:00:11]} Qe7 {[%clk 00:14:13]} {[%emt 00:00:36]} 14. Be1 {[%clk 00:13:44]}
exd4 {[%clk 00:13:45]} {[%emt 00:00:17]} 15. exd4 {[%clk 00:13:40]} {[%emt
00:00:07]} Nb6 {[%clk 00:13:43]} {[%emt 00:00:26]} 16. d5 {[%clk 00:12:53]}
{[%emt 00:00:29]} cxd5 {[%clk 00:10:16]} {[%emt 00:03:29]} 17. Nxd5 {[%clk
00:12:37]} {[%emt 00:00:14]} Nbxd5 {[%clk 00:09:56]} {[%emt 00:00:23]} 18. cxd5
{[%clk 00:12:37]} {[%emt 00:00:10]} Rd8 {[%clk 00:09:20]} {[%emt 00:00:41]} 19.
Bb4 {[%clk 00:10:56]} {[%emt 00:01:31]} Qxb4 {[%clk 00:08:11]} {[%emt
00:01:32]} 20. Qxc7 {[%clk 00:10:56]} Qd6 {[%clk 00:08:10]} 21. Qxd6 {[%clk
00:10:40]} {[%emt 00:00:07]} Rxd6 {[%clk 00:08:10]} 22. Ne5 {[%clk 00:10:37]}
Bf5 {[%clk 00:06:54]} {[%emt 00:01:19]} 23. Nc4 {[%clk 00:10:25]} {[%emt
00:00:35]} Rd7 {[%clk 00:06:39]} 24. Rd4 {[%clk 00:09:04]} {[%emt 00:01:21]}
Rad8 {[%clk 00:06:01]} {[%emt 00:00:38]} 25. Ne3 {[%clk 00:08:40]} {[%emt
00:00:26]} Bg6 {[%clk 00:05:15]} {[%emt 00:00:48]} 26. Rad1 {[%clk 00:07:47]}
{[%emt 00:00:55]} Kf8 {[%clk 00:03:44]} {[%emt 00:01:33]} 27. Nc4 {[%clk
00:07:11]} {[%emt 00:00:43]} Bf5 {[%clk 00:03:30]} {[%emt 00:00:11]} 28. Ne3
{[%clk 00:05:39]} {[%emt 00:01:36]} Bg6 {[%clk 00:03:28]} {[%emt 00:00:07]} 29.
a4 {[%clk 00:04:17]} {[%emt 00:01:21]} Bh5 {[%clk 00:03:07]} {[%emt 00:00:26]}
30. g4 {[%clk 00:03:53]} {[%emt 00:00:21]} Bg6 {[%clk 00:02:47]} {[%emt
00:00:22]} 31. Nc4 {[%clk 00:03:53]} {[%emt 00:00:11]} Bc2 {[%clk 00:02:01]}
{[%emt 00:00:39]} 32. R1d2 {[%clk 00:03:22]} {[%emt 00:00:33]} Bb3 {[%clk
00:00:53]} {[%emt 00:01:14]} 33. Ne3 {[%clk 00:02:51]} {[%emt 00:00:28]} h6
{[%clk 00:00:54]} {[%emt 00:00:14]} 34. Bf3 {[%clk 00:02:39]} {[%emt 00:00:04]}
g6 {[%clk 00:00:40]} {[%emt 00:00:14]} 35. Kg2 {[%clk 00:02:31]} {[%emt
00:00:12]} b6 {[%clk 00:00:35]} {[%emt 00:00:07]} 36. h4 {[%clk 00:02:13]}
{[%emt 00:00:18]} g5 {[%clk 00:00:33]} {[%emt 00:00:40]} 37. h5 {[%clk
00:02:04]} a6 {[%clk 00:00:24]} {[%emt 00:00:04]} 38. d6 {[%clk 00:01:51]}
{[%emt 00:00:13]} Ne8 {[%clk 00:00:11]} {[%emt 00:00:03]} 39. Nf5 {[%clk
00:01:52]} Be6 {[%clk 00:00:10]} {[%emt 00:00:04]} 40. Nxh6 {[%emt 00:00:51]}
Kg8 {[%emt 00:00:09]} 41. Nf5 1/2-1/2

[Event "XVI Open Internacional Villa de Ibi"]
[Site "Ibi, Spain"]
[Date "2018.09.09"]
[Round "7.4"]
[White "Nicolas Zapata, Javier"]
[Black "Giaccio, Alfredo"]
[Result "0-1"]
[TimeControl "15' + 2'' por jugada"]
[WhiteElo "2181"]
[BlackElo "2442"]

1. e4 {[%clk 00:15:02]} {[%emt 00:00:10]} e6 {[%clk 00:15:03]} 2. d4 {[%clk
00:15:01]} d5 {[%clk 00:15:03]} 3. exd5 {[%clk 00:15:02]} exd5 {[%clk
00:15:04]} {[%emt 00:00:29]} 4. c4 {[%clk 00:15:03]} Bb4+ {[%clk 00:15:04]} 5.
Nc3 {[%clk 00:15:03]} Ne7 {[%clk 00:15:05]} 6. Nf3 {[%clk 00:15:00]} O-O {[%clk
00:15:04]} 7. Be2 {[%clk 00:14:26]} {[%emt 00:00:21]} dxc4 {[%clk 00:15:03]}
{[%emt 00:00:08]} 8. Bxc4 {[%clk 00:14:26]} {[%emt 00:00:03]} Bg4 {[%clk
00:14:09]} {[%emt 00:01:18]} 9. O-O {[%clk 00:13:07]} {[%emt 00:00:54]} Nbc6
{[%clk 00:14:08]} {[%emt 00:00:06]} 10. Be3 {[%clk 00:12:44]} {[%emt 00:00:22]}
Nf5 {[%clk 00:13:38]} {[%emt 00:00:39]} 11. d5 {[%clk 00:11:48]} {[%emt
00:00:50]} Ne5 {[%clk 00:12:44]} {[%emt 00:00:56]} 12. Be2 {[%clk 00:11:48]}
{[%emt 00:00:13]} Nxe3 {[%clk 00:12:43]} 13. fxe3 {[%clk 00:11:46]} Qe7 {[%clk
00:12:30]} {[%emt 00:00:11]} 14. Nxe5 {[%clk 00:09:06]} {[%emt 00:02:45]} Bxe2
{[%clk 00:12:29]} {[%emt 00:00:07]} 15. Qxe2 {[%clk 00:08:59]} {[%emt
00:00:08]} Qxe5 {[%clk 00:12:25]} {[%emt 00:00:04]} 16. Qd3 {[%clk 00:08:05]}
{[%emt 00:00:56]} Rfe8 {[%clk 00:11:37]} {[%emt 00:00:47]} 17. Rae1 {[%clk
00:07:56]} {[%emt 00:00:10]} g6 {[%clk 00:11:04]} {[%emt 00:00:35]} 18. Rf4
{[%clk 00:07:10]} {[%emt 00:00:48]} Qxf4 {[%clk 00:10:19]} {[%emt 00:00:47]} 19.
exf4 {[%clk 00:07:11]} {[%emt 00:00:11]} Rxe1+ {[%clk 00:10:20]} 20. Kf2 {[%clk
00:07:12]} Rae8 {[%clk 00:10:20]} {[%emt 00:00:03]} 21. Qc4 {[%clk 00:06:39]}
{[%emt 00:00:44]} Ba5 {[%clk 00:10:10]} {[%emt 00:00:17]} 22. d6 {[%clk
00:04:55]} {[%emt 00:01:32]} Bb6+ {[%clk 00:10:06]} {[%emt 00:00:17]} 23. Kg3
{[%clk 00:04:40]} {[%emt 00:00:23]} R1e3+ {[%clk 00:08:39]} {[%emt 00:01:06]}
24. Kg4 {[%clk 00:04:00]} {[%emt 00:01:13]} c6 {[%clk 00:05:39]} {[%emt
00:02:29]} 25. g3 {[%clk 00:03:13]} {[%emt 00:01:03]} R3e6 {[%clk 00:04:48]}
{[%emt 00:00:39]} 26. Kh3 {[%clk 00:02:28]} {[%emt 00:01:00]} Rxd6 {[%clk
00:02:35]} {[%emt 00:02:01]} 27. Ne4 {[%clk 00:02:20]} {[%emt 00:00:10]} Rde6
{[%clk 00:02:36]} {[%emt 00:00:41]} 28. Ng5 {[%clk 00:02:20]} R6e7 {[%clk
00:02:37]} 29. f5 {[%clk 00:02:13]} Be3 {[%clk 00:02:23]} 30. f6 {[%clk
00:01:44]} {[%emt 00:00:20]} Rd7 {[%clk 00:02:16]} {[%emt 00:00:22]} 31. Nf3
{[%clk 00:00:26]} {[%emt 00:01:08]} Rd6 {[%clk 00:02:03]} {[%emt 00:00:12]} 32.
Qh4 {[%clk 00:00:21]} {[%emt 00:00:10]} Ree6 {[%clk 00:01:54]} {[%emt
00:00:24]} 33. g4 {[%clk 00:00:04]} {[%emt 00:00:05]} Rxf6 {[%clk 00:01:52]}
{[%emt 00:00:09]} 34. Kg2 {[%clk 00:00:03]} h6 {[%clk 00:01:46]} {[%emt
00:00:04]} 35. Qg3 {[%clk 00:00:03]} {[%emt 00:00:08]} Bf4 {[%clk 00:01:42]}
{[%emt 00:00:04]} 36. Qf2 {[%clk 00:00:04]} Rd3 {[%clk 00:01:33]} {[%emt
00:00:09]} 37. Qxa7 {[%clk 00:00:04]} {[%emt 00:00:31]} Bd6 {[%clk 00:01:26]}
{[%emt 00:00:04]} 38. Ne1 Rd2+ {[%clk 00:01:25]} 39. Kh3 {[%clk 00:00:04]}
Rxh2# 0-1